[Event "Israel-ch Youth U8-18 2024"]
[Site "Kfar Saba"]
[Date "2024.04.17"]
[Round "2.8"]
[White "Hermans, Ray"]
[Black "Berlad, Asaf"]
[Result "0-1"]
[ECO "B06"]
[WhiteElo "1921"]
[BlackElo "1900"]
[Annotator "TA"]
[PlyCount "52"]
[EventDate "2024.04.10"]
[EventType "swiss"]
[EventCountry "ISR"]
[SourceTitle "playchess.com"]
[Source "ChessBase"]
[SourceQuality "1"]
[TimeControl "5400+30"]

{[%evp 12,52,36,16,38,0,29,23,61,25,30,0,0,-61,-54,-142,-153,-141,-149,-139,-142,-177,-92,-195,-160,-174,-174,-371,-154,-152,299,-459,-234,-657,-653,-973,-967,-1110,-1068,-1568,-1233,-2327,-2010]} 1. e4 {[%emt 0:00:05]} g6 {[%emt 0:00:18]} 2. d4 {[%emt 0:00:16]} d6 {[%emt 0:00:10]} 3. Nc3 {[%emt 0:00:40]} Bg7 {[%emt 0:00:10]} 4. Be3 {[%emt 0:00:30]} a6 {[%emt 0:00:13]} 5. Qd2 {[%emt 0:03:18]} b5 {[%emt 0:00:16][%cal Bb7b5,Bb5b4][%mdl 32]} 6. a4 {[%emt 0:01:25]} b4 {[%emt 0:02:25]} 7. Nce2 {[%emt 0:03:07]} Bb7 {[%emt 0:06:08]} 8. Ng3 {[%emt 0:02:43]} a5 {[%emt 0:05:34]} 9. Nf3 {[%emt 0:05:56]} Nf6 {[%emt 0:06:09] White has an edge.} 10. Bd3 {[%emt 0:05:25]} h5 {[%emt 0:04:24]} 11. h4 {[%emt 0:02:00]} Ng4 {[%emt 0:00:43]} 12. Ng5 {[%emt 0:01:25]} (12. Bg5 $11) 12... O-O $15 {[%emt 0:15:58]} 13. f3 {[%emt 0:05:45]} (13. O-O $15) 13... Nxe3 $17 {[%emt 0:00:46]} 14. Qxe3 {[%emt 0:00:06] [#]} c5 $1 {[%emt 0:06:27][%mdl 512]} 15. dxc5 {[%emt 0:05:13][%cal Oe4e5]} Bxb2 {[%emt 0:00:07]} 16. Rd1 {[%emt 0:00:35]} Bc3+ {[%emt 0:06:54]} (16... Na6 $19 17. Ne2 Bf6 (17... dxc5 $2 18. Bxa6 Qb8 19. Bxb7 $18) (17... Nxc5 $2 18. g4 $19)) 17. Ke2 {[%emt 0:00:19]} (17. Kf2 $17 {was necessary.}) 17... Na6 {[%emt 0:02:56]} 18. c6 {[%emt 0:03:24]} Bxc6 {[%emt 0:00:22] White must now prevent ...Nc5. This pair of bishops is nice.} 19. Bc4 $2 {[%emt 0:00:36]} (19. Nxh5 Nc5 (19... gxh5 $2 20. Bxa6 Qd7 21. Bd3 $19) 20. Ng3 Nxd3 (20... Bxa4 21. h5 $17) 21. Rxd3) 19... Nc7 {[%emt 0:06:48]} (19... Qc7 $19 {and Black stays clearly on top.} 20. Kf2 Bxa4) 20. Nxh5 {[%emt 0:07:47] [#]} gxh5 {[%emt 0:03:28] [#]} (20... Bxa4 $1 $17 {keeps the pressure on.} 21. Nf4 e6 (21... Bxc2 22. Rc1 $11)) 21. Qf4 $4 {[%emt 0:00:20][%mdl 8192]} (21. e5 $1 $18 {White threatens Qd3 and mate.} Kg7 (21... Bxa4 22. Qe4 Bxc2 23. Qxc2 Re8 24. Qh7+ Kf8 25. Qxf7#) (21... Bxe5 22. Qd3 Kg7 23. Qh7+ Kf6 24. Qh6+ Kf5 25. Nxf7 Bf6 26. Qxh5+ Kf4 27. Qg4#) 22. Qd3) 21... Qd7 {[%emt 0:15:17]} ({And not} 21... Bxa4 22. Qf5 Kg7 23. Qh7+ Kf6 24. Qh6+ (24. Bxf7 e5 $18) 24... Ke5 25. Nxf7+ (25. Bxf7 Rg8 26. f4+ Kxf4 27. Ne6+ Kg3 28. Rh3+ Kxg2 29. Nf4#) 25... Rxf7 26. Qg5+) (21... Qc8 $142 22. Bb3 Be5) 22. Bxf7+ $2 {[%emt 0:06:57]} (22. Nxf7 d5 (22... Bxa4 23. Qg5+ Bg7 24. Ne5+ $15) 23. Qg5+ Bg7 (23... Kxf7 $2 24. Qxh5+ Ke6 25. Qg6+ Rf6 26. exd5+ Nxd5 27. Qe4+ Kd6 28. Bxd5 $19) 24. Nh6+ Kh7 25. Nf5 Rxf5 26. exf5) 22... Kg7 $19 {[%emt 0:01:16] Black is clearly winning.} 23. Rh3 {[%emt 0:02:23]} Be5 {[%emt 0:02:05]} 24. Ne6+ {[%emt 0:00:48] [#]} Qxe6 $1 {[%emt 0:00:07][%mdl 512]} 25. Rg3+ {[%emt 0:00:05]} (25. Bxe6 Rxf4) 25... Kh8 {[%emt 0:00:50]} 26. Rd5 {[%emt 0:00:54]} Bxd5 {[%emt 0:01:14] Weighted Error Value: White=1.77/Black=1.07.  Loses game:     	---       	Black=1      Missed win:     	White=1     	Black=1      Mistake:       	White=5     	Black=2      Inaccurate:     	White=4     	Black=2      OK:         	White=3     	Black=4      Best:        	---       	Black=2} 0-1

[Event "Israel-ch Youth U8-18 2024"]
[Site "Kfar Saba"]
[Date "2024.04.17"]
[Round "2.9"]
[White "Azoulay, Yehonatan"]
[Black "Glik, Mike"]
[Result "1-0"]
[ECO "C02"]
[WhiteElo "1987"]
[BlackElo "1765"]
[Annotator "TA"]
[PlyCount "51"]
[EventDate "2024.04.10"]
[EventType "swiss"]
[EventCountry "ISR"]
[SourceTitle "playchess.com"]
[Source "ChessBase"]
[SourceQuality "1"]
[TimeControl "5400+30"]

{[%evp 17,51,-13,27,24,27,29,26,26,67,87,82,90,78,70,79,51,129,120,126,127,320,322,370,369,344,328,340,334,380,359,389,389,395,390,708,703]} 1. e4 {[%emt 0:00:02]} e6 {[%emt 0:00:01]} 2. d4 {[%emt 0:00:04]} d5 {[%emt 0:00:05]} 3. e5 {[%emt 0:00:02]} c5 {[%emt 0:00:04]} 4. c3 {[%emt 0:00:02]} Nc6 {[%emt 0:00:03]} 5. Nf3 {[%emt 0:00:03]} Qb6 {[%emt 0:00:03]} 6. a3 {[%emt 0:00:05]} Nh6 {[%emt 0:01:06]} 7. b4 {[%emt 0:00:36]} cxd4 {[%emt 0:00:06]} 8. cxd4 {[%emt 0:00:52]} Nf5 {[%emt 0:00:56]} 9. Be3 {[%emt 0:00:17]} Be7 {[%emt 0:00:47]} 10. Bd3 {[%emt 0:00:19]} Bd7 {[%emt 0:02:06]} 11. Nc3 {[%emt 0:00:12]} Nxe3 {[%emt 0:09:17]} 12. fxe3 {[%emt 0:00:04] White has an edge.} f6 {[%emt 0:01:04]} 13. exf6 {[%emt 0:00:25] White is more active.} Bxf6 {[%emt 0:00:04]} 14. Na4 {[%emt 0:04:54]} Qd8 {[%emt 0:03:22]} 15. O-O {[%emt 0:01:01][%cal Of3g5]} O-O {[%emt 0:00:56]} 16. Nc5 {[%emt 0:03:15][%cal Od1c2]} b6 {[%emt 0:03:37]} (16... Bc8 $14) 17. Nxd7 $16 {[%emt 0:00:08]} Qxd7 {[%emt 0:00:06]} 18. Qc2 $36 {[%emt 0:00:07][%cal Od3b5][%mdl 2048] Bb5! would now be deadly. White is really pushing.} g6 $2 {[%emt 0:07:20] [#] A mistake that costs the game.} (18... Rac8 $16 {was necessary.}) 19. Bb5 $1 $18 {[%emt 0:02:09]} Nxd4 {[%emt 0:13:02]} 20. Nxd4 {[%emt 0:00:09]} (20. Bxd7 Nxc2 21. Bxe6+ Kh8 $17) 20... Qe7 {[%emt 0:00:15]} 21. Rad1 {[%emt 0:05:13]} Rac8 {[%emt 0:09:00]} 22. Qd3 {[%emt 0:00:08]} Rc7 {[%emt 0:03:58]} 23. Qd2 {[%emt 0:27:32]} Qd6 {[%emt 0:05:16]} 24. Rc1 {[%emt 0:01:24] [#] aiming for Rxc7.} Rxc1 {[%emt 0:00:42]} 25. Rxc1 {[%emt 0:02:57]} e5 $2 {[%emt 0:02:03]} (25... Bxd4 26. exd4 (26. Qxd4 e5 $18) 26... Qf4 27. Qxf4 Rxf4) 26. Rc6 {[%emt 0:00:55] Weighted Error Value: White=0.03 (flawless) /Black=0.34.  Loses game:     	---       	Black=1      Mistake:       	---       	Black=2      Inaccurate:     	---       	Black=1      OK:         	White=4     	Black=5      Best:        	White=4     	---        Strong:       	White=1     	---} 1-0

[Event "Israel-ch Youth U8-18 2024"]
[Site "Kfar Saba"]
[Date "2024.04.17"]
[Round "2.10"]
[White "Shilon Rahav, Eliran"]
[Black "Jakobs, Yoav"]
[Result "1-0"]
[ECO "B23"]
[WhiteElo "2116"]
[BlackElo "1611"]
[Annotator "TA"]
[PlyCount "107"]
[EventDate "2024.04.10"]
[EventType "swiss"]
[EventCountry "ISR"]
[SourceTitle "playchess.com"]
[Source "ChessBase"]
[SourceQuality "1"]
[TimeControl "5400+30"]

{[%evp 9,107,22,30,41,39,32,43,24,54,34,77,52,54,30,44,-2,0,-12,31,-10,29,44,84,89,80,26,240,240,246,0,0,0,0,-22,-29,-22,0,0,0,1,14,0,33,20,49,46,51,0,0,0,13,-29,-31,-32,-17,-11,-16,-27,0,0,0,-122,-136,-116,-135,-213,-216,-214,-214,-204,-180,-267,-266,-336,-299,-312,197,188,198,202,201,204,212,208,203,137,234,148,134,56,59,59,4614,3795,29960,29961,29960,29961,4926,4926]} 1. e4 {[%emt 0:00:07]} c5 {[%emt 0:00:06]} 2. Nc3 {[%emt 0:00:23]} a6 {[%emt 0:00:17]} 3. Nge2 {[%emt 0:00:06]} d6 {[%emt 0:00:25]} 4. g3 {[%emt 0:00:32]} Nc6 {[%emt 0:00:08]} 5. Bg2 {[%emt 0:00:23]} g6 {[%emt 0:00:07]} 6. d4 {[%emt 0:02:43]} cxd4 {[%emt 0:01:13]} 7. Nxd4 {[%emt 0:00:18]} Bd7 {[%emt 0:00:47]} 8. Be3 {[%emt 0:02:14] White is slightly better.} Nf6 {[%emt 0:02:21]} 9. h3 {[%emt 0:03:14]} Qc7 {[%emt 0:03:45]} 10. O-O {[%emt 0:02:20]} Bg7 {[%emt 0:01:33]} 11. Qd2 {[%emt 0:02:48]} Rc8 {[%emt 0:04:58]} 12. Rad1 {[%emt 0:15:56]} (12. Nd5 $14 {is more appropriate.} Nxd5 13. exd5) 12... Ne5 {[%emt 0:06:24]} 13. Qe2 {[%emt 0:01:54]} b5 {[%emt 0:04:03]} 14. Bg5 {[%emt 0:04:57]} Qc4 {[%emt 0:04:53]} 15. Qe3 {[%emt 0:06:16]} h6 {[%emt 0:03:32]} 16. Bxf6 {[%emt 0:02:21]} Bxf6 {[%emt 0:00:15]} 17. f4 {[%emt 0:06:45]} (17. Nd5 $16 {Strongly threatening f4.} Qc5 18. Nxf6+ exf6 19. c3) 17... Nc6 $2 {[%emt 0:01:43] [#]} (17... Qc5 $1 $11 {and Black has nothing to worry.} 18. Nd5 (18. fxe5 dxe5 19. Nf5 gxf5 $11) 18... Nc4 19. Nxf6+ exf6) 18. e5 $1 $18 {[%emt 0:01:01][%mdl 512]} dxe5 {[%emt 0:01:27]} 19. Nxc6 {[%emt 0:00:27]} (19. fxe5 $18 Bg5 (19... Nxe5 $2 {loses.} 20. Rxf6 exf6 21. Nd5 $18) 20. Qf2 Nxe5 21. Bd5) 19... Bxc6 $11 {[%emt 0:01:43]} 20. fxe5 {[%emt 0:01:41]} Bg5 $36 {[%emt 0:00:22][%mdl 2048] Black is pushing. A strong pair of Bishops.} 21. Qf2 {[%emt 0:00:14] Threatens to win with Nd5.} Bxg2 {[%emt 0:00:50]} 22. Kxg2 {[%emt 0:00:14]} b4 {[%emt 0:02:29]} 23. Rd4 {[%emt 0:06:53]} Qc6+ {[%emt 0:01:49]} 24. Kh2 {[%emt 0:00:22][%csl Gf1][%cal Rf2f7]} O-O {[%emt 0:01:01]} 25. Rxb4 {[%emt 0:00:13] h4 would now be deadly.} e6 {[%emt 0:01:41]} 26. h4 {[%emt 0:01:28]} Bd8 {[%emt 0:01:46][%cal Bg5d8,Bd8b6,Bb6d4,Bd4b2,Bb2a3,Ba3e7,Be7f6][%mdl 32]} 27. Rf4 {[%emt 0:00:21][%cal Rf4f7]} Bb6 {[%emt 0:00:42]} 28. Qf3 {[%emt 0:02:15]} (28. Qe2 $14) 28... Qxf3 {[%emt 0:02:11]} 29. R1xf3 {[%emt 0:03:56]} Rcd8 {[%emt 0:01:09]} 30. Ne4 {[%emt 0:18:41] Hoping for Nd6.} Bd4 {[%emt 0:01:05][%csl LRb2,LRe5]} 31. Nf6+ {[%emt 0:00:53]} Kg7 {[%emt 0:00:36]} 32. Re4 {[%emt 0:02:50]} Bxb2 {[%emt 0:00:46]} 33. c3 {[%emt 0:01:08]} Ba3 {[%emt 0:04:02]} 34. Ra4 {[%emt 0:00:40][%csl LRa3,LRa6]} Be7 {[%emt 0:00:37]} 35. Ne4 {[%emt 0:00:55]} (35. Rxa6 $11 Ra8 36. Rxa8 Rxa8 37. Rf2) 35... Rd5 $17 {[%emt 0:00:51]} 36. Rxa6 {[%emt 0:00:27]} Rxe5 {[%emt 0:00:10]} 37. Nf2 {[%emt 0:00:15]} (37. Nd6 $17) 37... Re2 $19 {[%emt 0:01:14]} 38. Kg2 {[%emt 0:01:16]} Rb8 {[%emt 0:00:41]} 39. Ra7 {[%emt 0:00:34]} Bf6 {[%emt 0:00:54]} 40. g4 {[%emt 0:03:01] [#]} (40. Ra4 $142 Rb7 41. Kh3) 40... g5 $1 {[%emt 0:00:38]} ({Weaker is} 40... Bxh4 41. Rfxf7+ Kg8 42. Rg7+ Kf8 43. Kh3 Rxf2 (43... Bxf2 44. Rgf7+ Kg8 45. Rg7+ Kf8 46. Raf7+ Ke8 47. Rc7 $11) 44. Kxh4 $11) 41. h5 {[%emt 0:00:36]} Rc2 {[%emt 0:01:25][%cal Ob8b2]} 42. a4 {[%emt 0:00:44]} Rxc3 $4 {[%emt 0:00:45][%mdl 8192] [#]} (42... Rbb2 $19 {[%cal Oe6e5] And now ...e5! would win.} 43. Rc7 Ra2) 43. Rxf6 $1 $18 {[%emt 0:00:05][%mdl 512]} Kxf6 $19 {[%emt 0:00:51][%mdl 4096] Endgame. KRR-KRN} 44. Ne4+ {[%emt 0:00:04]} Ke5 {[%emt 0:00:14]} 45. Nxc3 $18 {[%emt 0:00:02] KRN-KR} Kf4 {[%emt 0:00:27]} 46. Rxf7+ {[%emt 0:01:08]} Kxg4 {[%emt 0:00:16]} 47. Nb5 {[%emt 0:00:40]} Ra8 {[%emt 0:00:17]} (47... Kxh5 $16 {is a better defense.} 48. Rf2 Kg6) 48. Ra7 {[%emt 0:00:07]} Rd8 {[%emt 0:00:49]} 49. a5 {[%emt 0:00:30]} ({White should try} 49. Rc7 $16) 49... Rd2+ $14 {[%emt 0:00:04]} 50. Kf1 {[%emt 0:00:15]} e5 $2 {[%emt 0:00:45][%mdl 8192]} (50... Ra2 $14) 51. a6 $18 {[%emt 0:00:15][%cal Ba5a6,Ba6a7][%mdl 32]} e4 {[%emt 0:01:02]} 52. Rf7 {[%emt 0:00:11]} Rd8 {[%emt 0:02:40]} 53. a7 {[%emt 0:00:10]} Ra8 {[%emt 0:00:10]} 54. Rb7 {[%emt 0:00:15] White used his chance.   Weighted Error Value: White=0.27 (precise) /Black=0.46.  Loses game:     	---       	Black=2      Missed win:     	White=1     	Black=1      Mistake:       	White=7     	Black=1      Inaccurate:     	White=4     	Black=8      OK:         	White=12    	Black=18     Best:        	White=3     	Black=5      Strong:       	---       	Black=1      Brilliant:      	White=2     	---} 1-0

[Event "Israel-ch Youth U8-18 2024"]
[Site "Kfar Saba"]
[Date "2024.04.17"]
[Round "2.11"]
[White "Margolin-Herman, Ofek"]
[Black "Vardi, Daniel"]
[Result "0-1"]
[ECO "B41"]
[WhiteElo "1612"]
[BlackElo "1937"]
[Annotator "TA"]
[PlyCount "134"]
[EventDate "2024.04.10"]
[EventType "swiss"]
[EventCountry "ISR"]
[SourceTitle "playchess.com"]
[Source "ChessBase"]
[SourceQuality "1"]
[TimeControl "5400+30"]

{[%evp 12,134,36,14,216,210,216,212,201,200,207,107,106,45,43,45,53,39,45,0,93,44,153,104,185,77,89,87,203,58,63,30,24,7,12,0,0,0,0,-15,-7,-21,0,0,6,0,15,0,0,-7,0,-16,6,0,0,0,0,0,0,-14,-13,-18,-11,-59,-59,-53,-25,-42,-46,-84,-70,-81,-81,-75,-75,-75,-75,-193,-135,-175,-89,-87,-27,-50,-29,-57,-35,-43,-41,-48,-37,-45,-25,-93,-58,-255,-285,-324,-324,-320,-320,-355,-357,-333,-326,-312,-244,-300,-294,-273,-215,-326,-337,-638,-785,-762,-758,-29966,-29970,-29967,-29970,-29963,-29962,-29994,-29995]} 1. e4 {[%emt 0:00:20]} c5 {[%emt 0:00:18]} 2. Nf3 {[%emt 0:00:38][%cal Bg1f3,Bf3d4,Bd4c6][%mdl 32]} e6 {[%emt 0:00:01]} 3. d4 {[%emt 0:00:32]} cxd4 {[%emt 0:00:04]} 4. Nxd4 {[%emt 0:00:22]} a6 {[%emt 0:00:00]} 5. c4 {[%emt 0:00:37]} Nf6 {[%emt 0:00:07]} 6. Nc3 {[%emt 0:00:43]} Bb4 {[%emt 0:00:04]} 7. f3 {[%emt 0:00:45]} d6 $2 {[%emt 0:03:24]} (7... O-O $11) 8. Qa4+ $18 {[%emt 0:03:33]} Nc6 {[%emt 0:00:35]} 9. Nxc6 {[%emt 0:00:22]} Bxc3+ {[%emt 0:00:05] White is clearly better.} 10. bxc3 {[%emt 0:00:08]} Qd7 {[%emt 0:00:07] [#]} 11. Be2 {[%emt 0:16:13]} bxc6 {[%emt 0:02:30]} 12. Rb1 {[%emt 0:00:29]} (12. c5 $16) 12... c5 $14 {[%emt 0:06:53]} 13. Qc2 {[%emt 0:00:33]} Bb7 {[%emt 0:02:36]} 14. Be3 {[%emt 0:00:56][%cal Oe4e5]} O-O {[%emt 0:04:07]} 15. O-O {[%emt 0:00:08]} Rab8 {[%emt 0:06:26]} (15... Rfb8 $11) 16. Rfd1 {[%emt 0:02:26]} (16. e5 $16 dxe5 17. Bxc5) 16... Qc6 {[%emt 0:01:50]} (16... Bc6 $14) 17. Bf4 {[%emt 0:01:54]} ({White should play} 17. Qd2) 17... Ne8 {[%emt 0:06:10]} (17... e5 $16 {was called for.} 18. Bg5 Qc7) 18. Rd2 {[%emt 0:12:05]} (18. e5 $18 {and White stays clearly on top.}) 18... e5 {[%emt 0:00:29]} 19. Be3 {[%emt 0:00:41]} Nc7 {[%emt 0:05:47] [#]} (19... Rd8 $16 {keeps fighting.}) 20. Rbd1 {[%emt 0:01:20]} ({White must play} 20. Qd1 $1 $18 Ne8 21. Rdb2) 20... Rbd8 {[%emt 0:02:22]} 21. Kh1 {[%emt 0:01:24]} Ne6 {[%emt 0:02:09]} 22. Qb1 {[%emt 0:07:28]} Qc7 {[%emt 0:02:50]} 23. Rb2 {[%emt 0:06:16]} Rb8 {[%emt 0:01:23]} 24. Rdd2 {[%emt 0:01:23]} Bc6 {[%emt 0:08:05]} 25. Rxb8 {[%emt 0:05:29]} Rxb8 {[%emt 0:00:28]} 26. Rb2 {[%emt 0:02:37]} Rd8 {[%emt 0:00:32]} 27. Qd1 {[%emt 0:04:03]} g6 {[%emt 0:06:30]} 28. Bd3 {[%emt 0:00:55]} Rf8 {[%emt 0:03:28]} 29. Qb1 {[%emt 0:01:34]} h5 {[%emt 0:07:57]} 30. Rd2 {[%emt 0:03:50]} Rb8 {[%emt 0:04:20]} 31. Rb2 {[%emt 0:00:14]} Rc8 {[%emt 0:00:05]} 32. Qe1 {[%emt 0:01:48]} Qa5 {[%emt 0:00:18]} 33. Bd2 {[%emt 0:00:57]} Kg7 {[%emt 0:03:44]} 34. Qb1 {[%emt 0:01:45]} g5 {[%emt 0:02:29]} 35. Qe1 {[%emt 0:06:04]} Qd8 {[%emt 0:04:49]} 36. Qg3 {[%emt 0:03:23]} Nf4 {[%emt 0:01:11] Strongly threatening ...h4.} 37. Bxf4 {[%emt 0:00:40]} (37. Bf1 $11 {is more appropriate.}) 37... exf4 $15 {[%emt 0:00:05]} 38. Qf2 {[%emt 0:01:27]} Qf6 {[%emt 0:00:13]} 39. Qe1 {[%emt 0:02:26]} Qe5 {[%emt 0:01:59]} 40. Re2 {[%emt 0:02:29]} Rh8 {[%emt 0:01:09]} 41. Qd2 {[%emt 0:02:45]} Rb8 {[%emt 0:03:56]} 42. Rf2 {[%emt 0:01:59]} a5 {[%emt 0:01:47] Black is much more active.} 43. Kg1 {[%emt 0:01:36]} a4 {[%emt 0:01:47]} 44. g3 {[%emt 0:02:42]} f6 {[%emt 0:02:12]} (44... a3 $19 45. gxf4 Qxf4 (45... gxf4 46. Qc1 $15) 46. Qxf4 gxf4) 45. gxf4 $17 {[%emt 0:01:16]} gxf4 {[%emt 0:00:02]} (45... Qxf4 $19 46. Qxf4 gxf4) 46. Rg2+ {[%emt 0:00:18]} Kh7 {[%emt 0:00:43]} ({Black should try} 46... Kf7 $17 47. Qc1 f5) 47. Qc1 {[%emt 0:00:54]} Bd7 {[%emt 0:00:36] Hoping for ...Bh3.} (47... f5 $5 48. exf5 Bxf3 $15) 48. Bf1 {[%emt 0:00:55]} Bh3 {[%emt 0:01:50]} 49. Rd2 {[%emt 0:00:49]} Rg8+ {[%emt 0:01:05]} 50. Kh1 {[%emt 0:00:44]} Be6 $36 {[%emt 0:01:18][%mdl 2048] Black is pushing.} 51. Rb2 {[%emt 0:00:28]} f5 {[%emt 0:00:46]} 52. Rb7+ {[%emt 0:00:26]} (52. exf5 $1 $11 {remains equal.} Bd7 (52... Bxf5 53. Re2 $15) (52... Qxf5 53. Qd1 $11) 53. Rb7 Qxf5 54. Be2) 52... Kh8 {[%emt 0:00:10]} 53. Qe1 {[%emt 0:00:31]} (53. Bd3 $1 $15) 53... fxe4 $19 {[%emt 0:01:03]} 54. Qxe4 {[%emt 0:00:02]} Qxe4 {[%emt 0:00:27]} 55. fxe4 {[%emt 0:00:05][%mdl 4096] Endgame. KRB-KRB} Bg4 {[%emt 0:00:34] ( -> ...Bf3+)} 56. h3 {[%emt 0:00:24]} Bf3+ {[%emt 0:00:23]} 57. Kh2 {[%emt 0:00:03]} Bxe4 {[%emt 0:00:20]} 58. Rf7 {[%emt 0:00:32]} f3 {[%emt 0:00:28]} 59. Rf6 {[%emt 0:00:09]} a3 {[%emt 0:01:42]} 60. Rxd6 {[%emt 0:02:11]} Rb8 {[%emt 0:00:08]} 61. Re6 {[%emt 0:00:34]} (61. Kg3 $142) 61... Bb1 {[%emt 0:00:59][%cal Oh5h4] Threatens to win with ...h4!} 62. Ra6 $2 {[%emt 0:00:18]} (62. Kg3 Ra8 (62... Bxa2 63. Ra6 $17) 63. Re5 (63. Rh6+ $2 Kg7 $19) 63... Bxa2 64. Rxh5+ Kg7 65. Bd3 (65. Rxc5 $2 Bb1 $19)) 62... h4 {[%emt 0:00:43] ...Rb2+ would now be deadly.} (62... Bxa2 63. Rxa3 Bb1 64. Ra5 $17) 63. Rxa3 {[%emt 0:00:46]} Rb2+ {[%emt 0:00:01]} 64. Kg1 {[%emt 0:00:18]} f2+ {[%emt 0:00:49] Black mates.} ({Stronger than} 64... Bxa2 65. Ra7 $11) 65. Kh2 {[%emt 0:00:02] [#]} Bd3 $1 {[%emt 0:00:16][%mdl 512]} 66. Ra8+ {[%emt 0:00:29]} Kg7 {[%emt 0:00:13]} 67. Kg2 {[%emt 0:00:05]} Be4+ {[%emt 0:02:03] A wild game.   Weighted Error Value: White=0.32/Black=0.28 (precise) .  Loses game:     	White=1     	---        Mistake:       	White=11    	Black=7      Inaccurate:     	White=4     	Black=2      OK:         	White=11    	Black=19     Best:        	White=3     	Black=4} 0-1

[Event "Israel-ch Youth U8-18 2024"]
[Site "Kfar Saba"]
[Date "2024.04.17"]
[Round "2.12"]
[White "Gurevich, Neria"]
[Black "Davidovich, Asaf"]
[Result "1-0"]
[ECO "E11"]
[WhiteElo "1844"]
[BlackElo "1609"]
[Annotator "NA RC COMBH"]
[PlyCount "47"]
[EventDate "2024.04.10"]
[EventType "swiss"]
[EventCountry "ISR"]
[SourceTitle "playchess.com"]
[Source "ChessBase"]
[SourceQuality "1"]
[TimeControl "5400+30"]

{[%evp 26,47,-27,32767,0,7,85,90,97,101,119,101,145,32767,32767,129,32767,128,160,138,198,196,202,173]} 1. d4 {[%emt 0:00:03]} Nf6 {[%emt 0:00:06]} 2. c4 {[%emt 0:00:10]} e6 {[%emt 0:00:15]} 3. g3 {[%emt 0:00:21]} d5 {[%emt 0:00:18]} 4. Bg2 {[%emt 0:00:26]} Bb4+ {[%emt 0:02:14]} 5. Bd2 {[%emt 0:00:30]} Be7 {[%emt 0:00:08]} 6. Nf3 {[%emt 0:00:54]} O-O {[%emt 0:00:47]} 7. Qc2 {[%emt 0:00:54] E11: Bogo-Indian.} Nbd7 {[%emt 0:03:39]} 8. O-O {[%emt 0:01:10]} b6 {[%emt 0:05:07]} 9. Nc3 {[%emt 0:10:37]} Bb7 {[%emt 0:04:32]} 10. Rad1 {[%emt 0:07:16]} Rc8 {[%emt 0:07:00]} 11. cxd5 {[%emt 0:02:38]} exd5 {[%emt 0:00:36]} 12. Ne5 {[%emt 0:02:05]} c5 {[%emt 0:01:33]} 13. Bf4 {[%emt 0:00:53]} cxd4 {[%emt 0:11:05]} 14. Rxd4 {[%emt 0:00:18]} Bc5 {[%emt 0:00:55]} 15. Rd2 $1 {[%emt 0:02:22]} Qe7 {[%emt 0:05:21] [#]} (15... Re8 $11 16. Nd3 Bd4) 16. Nxd7 $1 {[%emt 0:00:40]} (16. Nxd5 $2 {is the wrong capture.} Nxd5 17. Qd1 Nxe5 $19) 16... Qxd7 {[%emt 0:00:54] [#]} 17. Be5 $1 {[%emt 0:00:45]} Be7 {[%emt 0:12:15]} 18. Qb3 {[%emt 0:03:35]} Rfd8 {[%emt 0:16:53]} ({Better is} 18... Ng4) 19. Bxf6 {[%emt 0:09:07]} Bxf6 {[%emt 0:00:19]} 20. Nxd5 {[%emt 0:00:22]} (20. Bxd5 $2 {is the wrong capture.} Bxc3 21. Bxb7 Bxd2 $19) 20... Bxd5 {[%emt 0:01:02]} 21. Bxd5 {[%emt 0:00:15]} Qe7 {[%emt 0:07:49]} (21... g6 $142 22. Kg2 Rc5) 22. Rfd1 {[%emt 0:00:24]} Bg5 {[%emt 0:01:21]} (22... g6 $16 {keeps fighting.} 23. h4 Kg7) 23. f4 {[%emt 0:02:02]} Bf6 $18 {[%emt 0:01:15]} 24. e4 {[%emt 0:00:14]} 1-0